[Event "*** Titled Tuesday Blitz"]
[Site "Chess.com"]
[Date "2019.06.04"]
[Round "2"]
[White "KNVB"]
[Black "IIIlllII1llIl"]
[Result "1-0"]
[WhiteElo "2703"]
[BlackElo "2765"]
[TimeControl "180+2"]
[EndTime "13:24:48 PDT"]
[Termination "KNVB won by resignation"]

1. c4 {[%clk 0:03:01.9]} 1... g6 {[%clk 0:02:58]} 2. d4 {[%clk 0:03:02.7]} 2...
Nf6 {[%clk 0:02:58.1]} 3. Nc3 {[%clk 0:03:03.6]} 3... Bg7 {[%clk 0:02:59]} 4. e4
{[%clk 0:03:04.8]} 4... d6 {[%clk 0:02:59.9]} 5. f3 {[%clk 0:03:05.6]} 5... O-O
{[%clk 0:03:01.2]} 6. Be3 {[%clk 0:03:07.2]} 6... c5 {[%clk 0:03:02.1]} 7. dxc5
{[%clk 0:03:08.9]} 7... dxc5 {[%clk 0:03:04]} 8. Qxd8 {[%clk 0:03:10.1]} 8...
Rxd8 {[%clk 0:03:04.9]} 9. Bxc5 {[%clk 0:03:12]} 9... Nc6 {[%clk 0:03:05.8]} 10.
Nd5 {[%clk 0:03:13.1]} 10... Nd7 {[%clk 0:02:52.5]} 11. Bxe7 {[%clk 0:03:13.7]}
11... Nxe7 {[%clk 0:02:46.8]} 12. Nxe7+ {[%clk 0:03:15.6]} 12... Kf8 {[%clk
0:02:45]} 13. Nd5 {[%clk 0:03:15.5]} 13... Bxb2 {[%clk 0:02:25.9]} 14. Rb1
{[%clk 0:03:16.4]} 14... Bd4 {[%clk 0:02:09.4]} 15. Ne2 {[%clk 0:03:13.7]} 15...
Bc5 {[%clk 0:02:02.8]} 16. Nef4 {[%clk 0:03:13.9]} 16... Ne5 {[%clk 0:01:57.9]}
17. Nd3 {[%clk 0:03:14.4]} 17... Nxd3+ {[%clk 0:01:56.8]} 18. Bxd3 {[%clk
0:03:16.3]} 18... b6 {[%clk 0:01:57.4]} 19. Ke2 {[%clk 0:03:14.5]} 19... Bb7
{[%clk 0:01:45.4]} 20. Rhd1 {[%clk 0:02:57.8]} 20... Rac8 {[%clk 0:01:45.8]} 21.
h4 {[%clk 0:02:38.7]} 21... Ba6 {[%clk 0:01:43.9]} 22. Nb4 {[%clk 0:02:20.7]}
22... Bb7 {[%clk 0:01:33.5]} 23. Nd5 {[%clk 0:02:21.2]} 23... h5 {[%clk
0:01:28.9]} 24. f4 {[%clk 0:02:20.3]} 24... Be7 {[%clk 0:00:58]} 25. g3 {[%clk
0:02:19.9]} 25... Rc5 {[%clk 0:00:58.7]} 26. Nxe7 {[%clk 0:02:00.1]} 26... Kxe7
{[%clk 0:01:00.6]} 27. Rb5 {[%clk 0:02:01.2]} 27... Rdc8 {[%clk 0:00:49]} 28.
Ke3 {[%clk 0:01:11.7]} 28... Ba6 {[%clk 0:00:49.5]} 29. Rxc5 {[%clk 0:01:12.2]}
29... Rxc5 {[%clk 0:00:51.4]} 30. Kd4 {[%clk 0:01:10.7]} 30... Ra5 {[%clk
0:00:51.6]} 31. Rd2 {[%clk 0:01:09.6]} 31... Ra4 {[%clk 0:00:51.3]} 32. Kc3
{[%clk 0:01:07]} 32... Ra5 {[%clk 0:00:50.2]} 33. Kb4 {[%clk 0:01:02.7]} 33...
Rc5 {[%clk 0:00:50.7]} 34. Be2 {[%clk 0:00:58.6]} 34... Bb7 {[%clk 0:00:45.1]}
35. e5 {[%clk 0:00:56.2]} 35... Bc6 {[%clk 0:00:31]} 36. Rd6 {[%clk 0:00:37.1]}
36... Be8 {[%clk 0:00:24.6]} 37. Bd1 {[%clk 0:00:31.7]} 37... Bc6 {[%clk
0:00:20.9]} 38. Rd4 {[%clk 0:00:21.6]} 38... Ke8 {[%clk 0:00:18.7]} 39. Bb3
{[%clk 0:00:19.8]} 39... Ke7 {[%clk 0:00:19.3]} 40. Rd6 {[%clk 0:00:18.5]} 40...
Ke8 {[%clk 0:00:17.9]} 41. Rxc6 {[%clk 0:00:16.3]} 41... Rxc6 {[%clk 0:00:17.7]}
42. Ba4 {[%clk 0:00:17.7]} 42... Kd7 {[%clk 0:00:18.9]} 43. Kc3 {[%clk
0:00:06.2]} 43... Kc7 {[%clk 0:00:18.6]} 44. Bxc6 {[%clk 0:00:07.6]} 44... Kxc6
{[%clk 0:00:20.5]} 45. Kd4 {[%clk 0:00:08.6]} 45... Kc7 {[%clk 0:00:18.1]} 46.
Kd5 {[%clk 0:00:07.5]} 46... Kd7 {[%clk 0:00:19.1]} 47. c5 {[%clk 0:00:05]}
47... bxc5 {[%clk 0:00:08.8]} 48. Kxc5 {[%clk 0:00:06.9]} 48... Ke6 {[%clk
0:00:10.5]} 49. Kb5 {[%clk 0:00:04.5]} 49... Kf5 {[%clk 0:00:11.4]} 50. Ka6
{[%clk 0:00:06.1]} 50... g5 {[%clk 0:00:12.1]} 51. fxg5 {[%clk 0:00:06]} 51...
Kg4 {[%clk 0:00:13.1]} 52. e6 {[%clk 0:00:06.1]} 1-0

[Event "*** Titled Tuesday Blitz"]
[Site "Chess.com"]
[Date "2019.06.04"]
[Round "2"]
[White "GrigorGrigorov"]
[Black "attack2mateU"]
[Result "0-1"]
[WhiteElo "2737"]
[BlackElo "2715"]
[TimeControl "180+2"]
[EndTime "13:24:54 PDT"]
[Termination "attack2mateU won by resignation"]

1. Nf3 {[%clk 0:03:01.9]} 1... c5 {[%clk 0:03:00.8]} 2. e4 {[%clk 0:02:59]} 2...
d6 {[%clk 0:03:01.5]} 3. Bb5+ {[%clk 0:02:59.4]} 3... Bd7 {[%clk 0:03:01.7]} 4.
a4 {[%clk 0:02:57.9]} 4... Nf6 {[%clk 0:03:01.8]} 5. Nc3 {[%clk 0:02:57.7]} 5...
a6 {[%clk 0:03:01]} 6. Bxd7+ {[%clk 0:02:54.9]} 6... Qxd7 {[%clk 0:03:02]} 7. e5
{[%clk 0:02:55]} 7... dxe5 {[%clk 0:03:00.8]} 8. Nxe5 {[%clk 0:02:56.3]} 8...
Qe6 {[%clk 0:03:00.5]} 9. Qe2 {[%clk 0:02:57.5]} 9... Nc6 {[%clk 0:02:58.2]} 10.
Nxc6 {[%clk 0:02:54.4]} 10... Qxc6 {[%clk 0:03:00.1]} 11. O-O {[%clk 0:02:55.1]}
11... g6 {[%clk 0:02:51.7]} 12. d3 {[%clk 0:02:53.1]} 12... Bg7 {[%clk
0:02:52.3]} 13. Re1 {[%clk 0:02:49.7]} 13... O-O {[%clk 0:02:51.1]} 14. a5
{[%clk 0:02:45.6]} 14... Rfe8 {[%clk 0:02:46.9]} 15. Ra4 {[%clk 0:02:21.8]}
15... Nd5 {[%clk 0:02:44.4]} 16. Nxd5 {[%clk 0:02:21.9]} 16... Qxa4 {[%clk
0:02:33.3]} 17. Nc7 {[%clk 0:02:22.9]} 17... e6 {[%clk 0:02:08.3]} 18. Nxa8
{[%clk 0:02:22.5]} 18... Rxa8 {[%clk 0:02:10.2]} 19. Qd2 {[%clk 0:02:18.4]}
19... Rc8 {[%clk 0:02:03.7]} 20. g3 {[%clk 0:02:12.7]} 20... Bf6 {[%clk
0:02:01.6]} 21. Kg2 {[%clk 0:02:10]} 21... Bd8 {[%clk 0:02:02.1]} 22. Re4 {[%clk
0:01:55]} 22... Qxa5 {[%clk 0:01:59.7]} 23. Qf4 {[%clk 0:01:52.9]} 23... Qc7
{[%clk 0:01:59.1]} 24. Qf3 {[%clk 0:01:49.8]} 24... Qc6 {[%clk 0:01:59.9]} 25.
g4 {[%clk 0:01:29.3]} 25... f5 {[%clk 0:01:48.7]} 26. gxf5 {[%clk 0:01:30.1]}
26... gxf5 {[%clk 0:01:49.6]} 27. Re1 {[%clk 0:01:20.5]} 27... Bf6 {[%clk
0:01:48.7]} 28. Qxc6 {[%clk 0:01:19.3]} 28... Rxc6 {[%clk 0:01:48.3]} 29. b3
{[%clk 0:01:21.2]} 29... Kf7 {[%clk 0:01:49]} 30. Kf3 {[%clk 0:01:21.4]} 30...
Rc8 {[%clk 0:01:48.6]} 31. Bf4 {[%clk 0:01:21.9]} 31... Rg8 {[%clk 0:01:41.1]}
32. Bd6 {[%clk 0:01:21.9]} 32... Be7 {[%clk 0:01:39.8]} 33. Be5 {[%clk
0:01:18.5]} 33... h5 {[%clk 0:01:37.8]} 34. h3 {[%clk 0:01:19]} 34... Rd8 {[%clk
0:01:32]} 35. Rg1 {[%clk 0:01:19.4]} 35... Bf6 {[%clk 0:01:32.8]} 36. Bxf6
{[%clk 0:01:13.5]} 36... Kxf6 {[%clk 0:01:34.7]} 37. h4 {[%clk 0:01:01]} 37...
Rd4 {[%clk 0:01:32.5]} 38. Rg8 {[%clk 0:01:02.4]} 38... Rxh4 {[%clk 0:01:31.4]}
39. Rc8 {[%clk 0:01:03.6]} 39... b6 {[%clk 0:01:28.9]} 40. c3 {[%clk 0:00:49.2]}
40... Rh1 {[%clk 0:01:18.8]} 41. Rc6 {[%clk 0:00:48.8]} 41... Rc1 {[%clk
0:01:19.5]} 42. c4 {[%clk 0:00:42.4]} 42... Rc3 {[%clk 0:01:20.9]} 43. Rxb6
{[%clk 0:00:43.3]} 43... Rxd3+ {[%clk 0:01:22.5]} 44. Ke2 {[%clk 0:00:44.8]}
44... Rh3 {[%clk 0:01:15]} 45. Rxa6 {[%clk 0:00:41.9]} 45... Rxb3 {[%clk
0:01:11.3]} 46. Rc6 {[%clk 0:00:43.3]} 46... Ke5 {[%clk 0:01:06.8]} 47. Rxc5+
{[%clk 0:00:43.2]} 47... Kf4 {[%clk 0:01:05]} 48. Rc6 {[%clk 0:00:35.8]} 48...
Rb2+ {[%clk 0:01:02]} 49. Kd3 {[%clk 0:00:33.3]} 49... e5 {[%clk 0:01:02.6]} 50.
Rh6 {[%clk 0:00:32.8]} 50... Kg5 {[%clk 0:01:02]} 51. Re6 {[%clk 0:00:33.2]}
51... Kf4 {[%clk 0:00:57.7]} 52. c5 {[%clk 0:00:32.4]} 52... Rxf2 {[%clk
0:00:58.6]} 53. c6 {[%clk 0:00:33.5]} 53... e4+ {[%clk 0:00:59.6]} 54. Kc3
{[%clk 0:00:33.5]} 54... Rg2 {[%clk 0:00:57.7]} 55. c7 {[%clk 0:00:28.5]} 55...
Rg8 {[%clk 0:00:58.5]} 56. Re7 {[%clk 0:00:26.1]} 56... Kf3 {[%clk 0:00:58.3]}
57. Kd4 {[%clk 0:00:23.6]} 57... Rc8 {[%clk 0:00:57.8]} 58. Rh7 {[%clk
0:00:18.2]} 58... f4 {[%clk 0:00:53]} 59. Ke5 {[%clk 0:00:11.8]} 59... e3 {[%clk
0:00:52.6]} 60. Rxh5 {[%clk 0:00:11.6]} 60... e2 {[%clk 0:00:50.2]} 61. Rh1
{[%clk 0:00:11.7]} 61... Rxc7 {[%clk 0:00:50.9]} 0-1

[Event "*** Titled Tuesday Blitz"]
[Site "Chess.com"]
[Date "2019.06.04"]
[Round "2"]
[White "Korchmar_Vasiliy"]
[Black "HansCoolNiemann"]
[Result "0-1"]
[WhiteElo "2775"]
[BlackElo "2696"]
[TimeControl "180+2"]
[EndTime "13:24:57 PDT"]
[Termination "HansCoolNiemann won by checkmate"]

1. d4 {[%clk 0:03:01.6]} 1... Nf6 {[%clk 0:02:59.1]} 2. c4 {[%clk 0:03:03]} 2...
e6 {[%clk 0:03:00.4]} 3. g3 {[%clk 0:03:03.3]} 3... c5 {[%clk 0:02:58.1]} 4. d5
{[%clk 0:03:04.3]} 4... exd5 {[%clk 0:02:59.9]} 5. cxd5 {[%clk 0:03:06.2]} 5...
d6 {[%clk 0:03:01.7]} 6. Nc3 {[%clk 0:03:06.9]} 6... g6 {[%clk 0:03:03.6]} 7.
Bg2 {[%clk 0:03:08]} 7... Bg7 {[%clk 0:03:05]} 8. Nf3 {[%clk 0:03:09.6]} 8...
O-O {[%clk 0:03:06.9]} 9. O-O {[%clk 0:03:11.2]} 9... Re8 {[%clk 0:03:06.6]} 10.
Bf4 {[%clk 0:03:11.5]} 10... a6 {[%clk 0:03:06.1]} 11. a4 {[%clk 0:03:12]} 11...
h6 {[%clk 0:03:07.5]} 12. Qc1 {[%clk 0:03:00.6]} 12... g5 {[%clk 0:03:07.5]} 13.
Bd2 {[%clk 0:03:01.8]} 13... Bf5 {[%clk 0:03:06.4]} 14. h4 {[%clk 0:03:01.9]}
14... g4 {[%clk 0:03:06]} 15. Ne1 {[%clk 0:03:03.1]} 15... h5 {[%clk 0:03:07.4]}
16. Nc2 {[%clk 0:03:03.4]} 16... Nbd7 {[%clk 0:03:07]} 17. Bg5 {[%clk
0:02:40.4]} 17... Ne5 {[%clk 0:03:04]} 18. Ne3 {[%clk 0:02:40.6]} 18... Bg6
{[%clk 0:03:04]} 19. Ne4 {[%clk 0:02:32.9]} 19... Qe7 {[%clk 0:03:00.2]} 20. a5
{[%clk 0:02:25.2]} 20... Ned7 {[%clk 0:02:46.6]} 21. Ra4 {[%clk 0:02:11.5]}
21... Qf8 {[%clk 0:02:41.1]} 22. Nxf6+ {[%clk 0:01:42]} 22... Nxf6 {[%clk
0:02:33.9]} 23. f3 {[%clk 0:01:43.3]} 23... gxf3 {[%clk 0:02:29.3]} 24. Bxf3
{[%clk 0:01:45.2]} 24... Nh7 {[%clk 0:02:07.2]} 25. Bf4 {[%clk 0:01:44.2]} 25...
Be5 {[%clk 0:02:08.7]} 26. Bxe5 {[%clk 0:01:42.7]} 26... Rxe5 {[%clk 0:02:10.6]}
27. Rf4 {[%clk 0:01:43.1]} 27... Qe7 {[%clk 0:02:08.8]} 28. Nc4 {[%clk
0:01:38.4]} 28... Rf5 {[%clk 0:01:51.5]} 29. Rxf5 {[%clk 0:01:39.2]} 29... Bxf5
{[%clk 0:01:53.4]} 30. Qf4 {[%clk 0:01:41.1]} 30... Bg6 {[%clk 0:01:39.1]} 31.
Nxd6 {[%clk 0:01:40.9]} 31... Rd8 {[%clk 0:01:38.8]} 32. Nf5 {[%clk 0:01:38.8]}
32... Qf6 {[%clk 0:01:37.1]} 33. e4 {[%clk 0:01:34.9]} 33... Qxb2 {[%clk
0:01:35.1]} 34. e5 {[%clk 0:01:29.8]} 34... c4 {[%clk 0:01:22.1]} 35. d6 {[%clk
0:01:28.7]} 35... c3 {[%clk 0:01:21.1]} 36. Ne7+ {[%clk 0:01:27]} 36... Kg7
{[%clk 0:01:16.5]} 37. Nxg6 {[%clk 0:01:16.5]} 37... fxg6 {[%clk 0:01:16.5]} 38.
e6 {[%clk 0:01:18]} 38... c2 {[%clk 0:01:07]} 39. e7 {[%clk 0:01:12.9]} 39...
Rc8 {[%clk 0:01:08.1]} 40. Rc1 {[%clk 0:00:38.3]} 40... Nf6 {[%clk 0:01:09]} 41.
Qd2 {[%clk 0:00:28.8]} 41... Qe5 {[%clk 0:01:06.2]} 42. d7 {[%clk 0:00:16.2]}
42... Qxg3+ {[%clk 0:00:45.7]} 43. Bg2 {[%clk 0:00:13.9]} 43... Nxd7 {[%clk
0:00:46.4]} 44. Qxd7 {[%clk 0:00:13.6]} 44... Qe3+ {[%clk 0:00:47.5]} 45. Kh2
{[%clk 0:00:12.8]} 45... Qf4+ {[%clk 0:00:48.2]} 46. Kg1 {[%clk 0:00:07.1]}
46... Qxc1+ {[%clk 0:00:48.7]} 47. Bf1 {[%clk 0:00:07]} 47... Qe3+ {[%clk
0:00:49.4]} 48. Kh1 {[%clk 0:00:06.4]} 48... Qf3+ {[%clk 0:00:26.2]} 49. Kh2
{[%clk 0:00:06.8]} 49... Qf2+ {[%clk 0:00:25.7]} 50. Bg2 {[%clk 0:00:05.3]}
50... Qxh4+ {[%clk 0:00:26.9]} 51. Bh3 {[%clk 0:00:06.7]} 51... Qf4+ {[%clk
0:00:27.2]} 52. Kg2 {[%clk 0:00:06.9]} 52... c1=Q {[%clk 0:00:21.7]} 53. e8=Q+
{[%clk 0:00:06.9]} 53... Kh6 {[%clk 0:00:23.3]} 54. Qexc8 {[%clk 0:00:03.7]}
54... Qcf1# {[%clk 0:00:21.2]} 0-1

[Event "*** Titled Tuesday Blitz"]
[Site "Chess.com"]
[Date "2019.06.04"]
[Round "2"]
[White "SamCopeland"]
[Black "Chesska7"]
[Result "1-0"]
[WhiteElo "2095"]
[BlackElo "2049"]
[TimeControl "180+2"]
[EndTime "13:25:03 PDT"]
[Termination "SamCopeland won by resignation"]

1. e4 {[%clk 0:03:01.9]} 1... c5 {[%clk 0:02:59.1]} 2. Nf3 {[%clk 0:03:02.6]}
2... d6 {[%clk 0:03:00.5]} 3. d4 {[%clk 0:03:03.7]} 3... cxd4 {[%clk 0:03:02.4]}
4. Nxd4 {[%clk 0:03:05.6]} 4... Nf6 {[%clk 0:03:03.8]} 5. Nc3 {[%clk 0:03:06.2]}
5... a6 {[%clk 0:03:05.3]} 6. Bg5 {[%clk 0:03:06.6]} 6... e6 {[%clk 0:03:06.3]}
7. f4 {[%clk 0:03:07.1]} 7... Qc7 {[%clk 0:03:07.7]} 8. Qe2 {[%clk 0:03:04.5]}
8... Nbd7 {[%clk 0:03:08.2]} 9. O-O-O {[%clk 0:02:55.5]} 9... b5 {[%clk
0:03:08.5]} 10. Nd5 {[%clk 0:02:33.1]} 10... exd5 {[%clk 0:02:58.8]} 11. exd5+
{[%clk 0:02:35]} 11... Be7 {[%clk 0:02:58.9]} 12. Nf5 {[%clk 0:02:14.6]} 12...
Nc5 {[%clk 0:02:36.6]} 13. Nxg7+ {[%clk 0:02:09.6]} 13... Kf8 {[%clk 0:02:17.3]}
14. Bh6 {[%clk 0:01:56.5]} 14... Kg8 {[%clk 0:02:14.9]} 15. Nh5 {[%clk
0:00:41.6]} 15... Ng4 {[%clk 0:01:51.2]} 16. Bg7 {[%clk 0:00:32.5]} 16... Bf5
{[%clk 0:01:30.4]} 17. h3 {[%clk 0:00:29.5]} 17... Nd3+ {[%clk 0:01:14.2]} 18.
Rxd3 {[%clk 0:00:18.2]} 18... Bxd3 {[%clk 0:01:13]} 19. Qxd3 {[%clk 0:00:20.1]}
19... Nf2 {[%clk 0:01:13.5]} 20. Qg3 {[%clk 0:00:14.6]} 20... Bh4 {[%clk
0:01:05.2]} 21. Qxh4 {[%clk 0:00:14.3]} 21... Rc8 {[%clk 0:01:06.1]} 22. Bc3
{[%clk 0:00:11.9]} 22... Nxh1 {[%clk 0:00:59.5]} 23. Qg5+ {[%clk 0:00:06.8]}
23... Kf8 {[%clk 0:01:00.2]} 24. Qg7+ {[%clk 0:00:07.9]} 24... Ke7 {[%clk
0:00:59.6]} 25. Bf6+ {[%clk 0:00:09.4]} 25... Ke8 {[%clk 0:00:59]} 26. Qxh8+
{[%clk 0:00:09.9]} 26... Kd7 {[%clk 0:01:00.3]} 27. Qxh7 {[%clk 0:00:09.9]}
27... Rf8 {[%clk 0:00:38.9]} 28. Bd3 {[%clk 0:00:09.7]} 28... Kc8 {[%clk
0:00:37.8]} 29. Bd4 {[%clk 0:00:07.6]} 29... Kb7 {[%clk 0:00:36.3]} 30. Qg7
{[%clk 0:00:06]} 30... Rc8 {[%clk 0:00:36.9]} 31. g4 {[%clk 0:00:05]} 31... b4
{[%clk 0:00:33.2]} 32. Qf6 {[%clk 0:00:05.9]} 32... Re8 {[%clk 0:00:33.4]} 33.
Ng7 {[%clk 0:00:06.3]} 33... Re1+ {[%clk 0:00:28.7]} 34. Kd2 {[%clk 0:00:07.5]}
34... Ra1 {[%clk 0:00:27.6]} 35. Nf5 {[%clk 0:00:06.5]} 35... b3 {[%clk
0:00:20.6]} 36. Nxd6+ {[%clk 0:00:07.1]} 36... Ka8 {[%clk 0:00:18.3]} 37. Qh8+
{[%clk 0:00:07.1]} 37... Qb8 {[%clk 0:00:19.1]} 38. Qxb8+ {[%clk 0:00:06.8]}
38... Kxb8 {[%clk 0:00:21]} 39. axb3 {[%clk 0:00:07.3]} 39... Ng3 {[%clk
0:00:20.6]} 40. Nxf7 {[%clk 0:00:07.7]} 40... Rh1 {[%clk 0:00:20.9]} 41. g5
{[%clk 0:00:08.7]} 41... Rxh3 {[%clk 0:00:22.1]} 42. g6 {[%clk 0:00:09.7]} 42...
Nh5 {[%clk 0:00:23.4]} 43. g7 {[%clk 0:00:10.3]} 43... Rg3 {[%clk 0:00:24.2]}
44. f5 {[%clk 0:00:09.6]} 44... Nxg7 {[%clk 0:00:25.3]} 45. Bxg7 {[%clk
0:00:09.6]} 45... Rxg7 {[%clk 0:00:27.2]} 46. Ne5 {[%clk 0:00:10.2]} 46... Kc7
{[%clk 0:00:28.6]} 47. f6 {[%clk 0:00:10.6]} 47... Rg8 {[%clk 0:00:29.7]} 48. c4
{[%clk 0:00:10.7]} 48... Kd6 {[%clk 0:00:30.7]} 49. Nf3 {[%clk 0:00:08.3]} 49...
Rf8 {[%clk 0:00:31.7]} 50. Nd4 {[%clk 0:00:09.5]} 50... Rxf6 {[%clk 0:00:32.7]}
51. b4 {[%clk 0:00:09.8]} 51... Rf4 {[%clk 0:00:33.2]} 52. Kc3 {[%clk
0:00:10.6]} 52... Rh4 {[%clk 0:00:34.5]} 53. Nf5+ {[%clk 0:00:10.5]} 1-0

[Event "*** Titled Tuesday Blitz"]
[Site "Chess.com"]
[Date "2019.06.04"]
[Round "2"]
[White "Koksal06"]
[Black "flubs"]
[Result "1-0"]
[WhiteElo "2498"]
[BlackElo "2306"]
[TimeControl "180+2"]
[EndTime "13:25:05 PDT"]
[Termination "Koksal06 won by resignation"]

1. d4 {[%clk 0:03:01.9]} 1... d5 {[%clk 0:02:59.4]} 2. c4 {[%clk 0:03:03.1]}
2... c6 {[%clk 0:03:00.1]} 3. Nc3 {[%clk 0:03:04.5]} 3... Nf6 {[%clk 0:03:00.7]}
4. Nf3 {[%clk 0:03:06]} 4... e6 {[%clk 0:03:01.6]} 5. Bg5 {[%clk 0:03:06.9]}
5... h6 {[%clk 0:03:00]} 6. Bxf6 {[%clk 0:03:07.2]} 6... Qxf6 {[%clk 0:03:01.9]}
7. e3 {[%clk 0:03:08.1]} 7... Nd7 {[%clk 0:03:01.3]} 8. Bd3 {[%clk 0:03:09.2]}
8... g6 {[%clk 0:03:02.7]} 9. O-O {[%clk 0:03:10]} 9... dxc4 {[%clk 0:03:03.4]}
10. Bxc4 {[%clk 0:03:11]} 10... Bg7 {[%clk 0:03:04.8]} 11. e4 {[%clk 0:03:09.7]}
11... e5 {[%clk 0:03:05.8]} 12. d5 {[%clk 0:03:11.1]} 12... O-O {[%clk
0:03:06.1]} 13. Rc1 {[%clk 0:03:07.7]} 13... Nb6 {[%clk 0:03:05.7]} 14. dxc6
{[%clk 0:03:06.2]} 14... bxc6 {[%clk 0:03:00.4]} 15. Be2 {[%clk 0:03:04.6]}
15... Rd8 {[%clk 0:02:59.9]} 16. Qc2 {[%clk 0:03:05.4]} 16... Bg4 {[%clk
0:02:55.8]} 17. Nd2 {[%clk 0:02:55.3]} 17... Be6 {[%clk 0:02:50.1]} 18. Rfd1
{[%clk 0:02:53.3]} 18... Bf8 {[%clk 0:02:49.8]} 19. Na4 {[%clk 0:02:46]} 19...
Rac8 {[%clk 0:02:33.2]} 20. Nc5 {[%clk 0:02:26.5]} 20... Kg7 {[%clk 0:01:48.8]}
21. Ndb3 {[%clk 0:02:07.7]} 21... Be7 {[%clk 0:01:23.2]} 22. Ba6 {[%clk
0:01:48.7]} 22... Rxd1+ {[%clk 0:01:19.1]} 23. Rxd1 {[%clk 0:01:49.2]} 23... Rd8
{[%clk 0:01:20.2]} 24. Rxd8 {[%clk 0:01:45.2]} 24... Bxd8 {[%clk 0:01:22.1]} 25.
Nb7 {[%clk 0:01:41]} 25... Bxb3 {[%clk 0:01:16.3]} 26. Qxb3 {[%clk 0:01:35.7]}
26... Be7 {[%clk 0:01:16.7]} 27. Qc2 {[%clk 0:01:33.2]} 27... Qe6 {[%clk
0:01:05]} 28. b3 {[%clk 0:01:25]} 28... Qd7 {[%clk 0:01:05.2]} 29. Na5 {[%clk
0:01:20.5]} 29... c5 {[%clk 0:01:01]} 30. g3 {[%clk 0:01:16.9]} 30... Qd4 {[%clk
0:00:58.5]} 31. Kg2 {[%clk 0:01:15.3]} 31... Bd6 {[%clk 0:00:57.2]} 32. Nc6
{[%clk 0:01:08.3]} 32... Qa1 {[%clk 0:00:55.1]} 33. Nxa7 {[%clk 0:01:09.3]}
33... Nd7 {[%clk 0:00:49.3]} 34. Nb5 {[%clk 0:01:08]} 34... Be7 {[%clk
0:00:50.4]} 35. Nc3 {[%clk 0:01:08.6]} 35... Nf8 {[%clk 0:00:50.6]} 36. Nd5
{[%clk 0:01:09.5]} 36... Bd6 {[%clk 0:00:51.7]} 37. Bc8 {[%clk 0:01:08.3]} 37...
Qe1 {[%clk 0:00:43.9]} 38. a4 {[%clk 0:01:02.5]} 38... Qa5 {[%clk 0:00:22.2]}
39. Qc3 {[%clk 0:01:03.2]} 39... Qa8 {[%clk 0:00:23]} 40. Bg4 {[%clk 0:01:01.6]}
40... f5 {[%clk 0:00:23.9]} 41. Bf3 {[%clk 0:01:02.2]} 41... Ne6 {[%clk
0:00:19.9]} 42. exf5 {[%clk 0:01:03]} 42... Nd4 {[%clk 0:00:21.2]} 43. f6+
{[%clk 0:01:00.6]} 43... Kf7 {[%clk 0:00:18.9]} 44. Qc4 {[%clk 0:01:00.6]} 44...
Kf8 {[%clk 0:00:14.1]} 45. Be4 {[%clk 0:00:59.9]} 45... Qb8 {[%clk 0:00:08.4]}
46. a5 {[%clk 0:00:56.5]} 46... Qxb3 {[%clk 0:00:04]} 47. Qxb3 {[%clk
0:00:55.1]} 47... Nxb3 {[%clk 0:00:05.9]} 48. a6 {[%clk 0:00:56.7]} 48... Bb8
{[%clk 0:00:07.2]} 49. Ne7 {[%clk 0:00:51.9]} 49... Ba7 {[%clk 0:00:04.9]} 50.
Nc6 {[%clk 0:00:52.9]} 50... Bb6 {[%clk 0:00:06.1]} 51. a7 {[%clk 0:00:54.1]}
51... Bxa7 {[%clk 0:00:07.4]} 52. Nxa7 {[%clk 0:00:55.9]} 52... Kf7 {[%clk
0:00:08.2]} 53. Nc6 {[%clk 0:00:55.9]} 53... Kxf6 {[%clk 0:00:09.5]} 54. Kf3
{[%clk 0:00:56.5]} 54... c4 {[%clk 0:00:05.4]} 55. Ke2 {[%clk 0:00:56.7]} 55...
Nd4+ {[%clk 0:00:05.2]} 56. Nxd4 {[%clk 0:00:57.3]} 56... exd4 {[%clk
0:00:07.1]} 57. Bd5 {[%clk 0:00:58.9]} 57... c3 {[%clk 0:00:06.9]} 58. Kd3
{[%clk 0:01:00.3]} 58... Ke5 {[%clk 0:00:08.3]} 59. Bb3 {[%clk 0:01:00.3]} 59...
g5 {[%clk 0:00:09.3]} 60. Bd1 {[%clk 0:01:00.4]} 60... Kd5 {[%clk 0:00:09.5]}
61. Bf3+ {[%clk 0:01:01.3]} 61... Ke5 {[%clk 0:00:10.7]} 62. h3 {[%clk
0:01:02.2]} 62... Kf5 {[%clk 0:00:07.8]} 63. Bh5 {[%clk 0:00:54.9]} 63... Ke5
{[%clk 0:00:08.6]} 64. Bg6 {[%clk 0:00:56.3]} 64... Kf6 {[%clk 0:00:09.9]} 65.
Bh7 {[%clk 0:00:57.9]} 65... Kg7 {[%clk 0:00:10.8]} 66. Be4 {[%clk 0:00:58.8]}
1-0